[Event "Senior Men Russian Championship 2022_HL"]
[Site "Saint-Petersburg, Russia"]
[Date "2022.10.01"]
[Round "8.6"]
[White "Dragomarezkij, Evgeni"]
[Black "Mishuchkov, Nikolai M."]
[Result "1/2-1/2"]
[TimeControl "40+30"]
[WhiteElo "2297"]
[BlackElo "2258"]

1. d4 {[%clk 01:30:54]} {[%emt 00:00:06]} d5 {[%clk 01:30:57]} {[%emt
00:00:04]} 2. c4 {[%clk 01:31:14]} {[%emt 00:00:10]} c6 {[%clk 01:31:22]}
{[%emt 00:00:04]} 3. cxd5 {[%clk 01:31:36]} {[%emt 00:00:09]} cxd5 {[%clk
01:31:47]} {[%emt 00:00:05]} 4. Nc3 {[%clk 01:31:53]} {[%emt 00:00:13]} Nc6
{[%clk 01:32:05]} {[%emt 00:00:12]} 5. Nf3 {[%clk 01:32:04]} {[%emt 00:00:19]}
Nf6 {[%clk 01:32:30]} {[%emt 00:00:03]} 6. Bf4 {[%clk 01:32:28]} {[%emt
00:00:08]} Bf5 {[%clk 01:32:51]} {[%emt 00:00:09]} 7. e3 {[%clk 01:32:55]}
{[%emt 00:00:03]} e6 {[%clk 01:33:18]} {[%emt 00:00:03]} 8. Bd3 {[%clk
01:33:22]} {[%emt 00:00:04]} Bxd3 {[%clk 01:33:40]} {[%emt 00:00:07]} 9. Qxd3
{[%clk 01:33:47]} {[%emt 00:00:06]} Bd6 {[%clk 01:34:02]} {[%emt 00:00:07]} 10.
Bxd6 {[%clk 01:34:06]} {[%emt 00:00:10]} Qxd6 {[%clk 01:34:26]} {[%emt
00:00:07]} 11. O-O {[%clk 01:34:28]} {[%emt 00:00:08]} O-O {[%clk 01:34:50]}
{[%emt 00:00:05]} 12. Rac1 {[%clk 01:34:41]} {[%emt 00:00:18]} Rfc8 {[%clk
01:35:14]} {[%emt 00:00:05]} 1/2-1/2

[Event "Senior Men Russian Championship 2022_HL"]
[Site "Saint-Petersburg, Russia"]
[Date "2022.10.01"]
[Round "8.8"]
[White "Raetsky, Alexander"]
[Black "Kornilov, Anatoly"]
[Result "1-0"]
[TimeControl "40+30"]
[WhiteElo "2384"]
[BlackElo "2094"]

1. d4 {[%clk 01:28:49]} {[%emt 00:02:12]} d5 {[%clk 01:31:15]} {[%emt
00:00:14]} 2. c4 {[%clk 01:29:02]} {[%emt 00:00:17]} e6 {[%clk 01:31:34]}
{[%emt 00:00:10]} 3. Nf3 {[%clk 01:29:25]} {[%emt 00:00:08]} c5 {[%clk
01:30:59]} {[%emt 00:01:05]} 4. g3 {[%clk 01:26:04]} {[%emt 00:03:51]} Nc6
{[%clk 01:31:10]} {[%emt 00:00:18]} 5. Bg2 {[%clk 01:26:18]} {[%emt 00:00:17]}
dxc4 {[%clk 01:29:42]} {[%emt 00:01:58]} 6. Na3 {[%clk 01:21:32]} {[%emt
00:05:16]} cxd4 {[%clk 01:29:09]} {[%emt 00:01:03]} 7. Nxc4 {[%clk 01:21:54]}
{[%emt 00:00:09]} Bb4+ {[%clk 01:22:24]} {[%emt 00:05:10]} 8. Bd2 {[%clk
01:22:19]} {[%emt 00:02:09]} Bxd2+ {[%clk 01:22:44]} {[%emt 00:00:10]} 9. Qxd2
{[%clk 01:22:44]} {[%emt 00:00:05]} Nge7 {[%clk 01:23:00]} {[%emt 00:00:11]} 10.
O-O {[%clk 01:21:17]} {[%emt 00:01:59]} O-O {[%clk 01:23:14]} {[%emt 00:00:17]}
11. b4 {[%clk 00:43:58]} {[%emt 00:37:49]} a6 {[%emt 00:04:47]} 12. a4 {[%emt
00:00:51]} Nf5 {[%clk 01:17:47]} {[%emt 00:00:18]} 13. Rfd1 {[%clk 00:37:51]}
{[%emt 00:06:37]} Qf6 {[%clk 01:09:46]} {[%emt 00:08:31]} 14. g4 {[%clk
00:33:38]} {[%emt 00:04:43]} Nh4 {[%clk 01:08:48]} {[%emt 00:01:28]} 15. Nxh4
{[%clk 00:30:09]} {[%emt 00:03:59]} Qxh4 {[%clk 01:08:59]} {[%emt 00:00:19]} 16.
Bxc6 {[%clk 00:30:38]} {[%emt 00:00:02]} bxc6 {[%clk 01:08:43]} {[%emt
00:00:46]} 17. Qxd4 {[%clk 00:31:07]} Qe7 {[%clk 01:02:17]} {[%emt 00:06:56]}
18. Na5 {[%clk 00:13:00]} {[%emt 00:18:37]} e5 {[%clk 01:00:28]} {[%emt
00:02:19]} 19. Nxc6 {[%clk 00:13:25]} {[%emt 00:00:06]} Qe6 {[%clk 00:58:51]}
{[%emt 00:02:06]} 20. Nxe5 {[%clk 00:12:35]} {[%emt 00:01:20]} f6 {[%clk
00:58:54]} {[%emt 00:00:27]} 21. Nd7 {[%clk 00:11:17]} {[%emt 00:01:49]} Rf7
{[%clk 00:51:42]} {[%emt 00:07:41]} 22. Nc5 {[%clk 00:07:17]} {[%emt 00:04:30]}
Qxg4+ {[%clk 00:51:58]} {[%emt 00:00:15]} 23. Qxg4 {[%clk 00:07:40]} {[%emt
00:00:07]} Bxg4 {[%clk 00:52:18]} {[%emt 00:00:11]} 24. f3 {[%clk 00:08:01]}
{[%emt 00:00:08]} Bh5 {[%clk 00:50:01]} {[%emt 00:02:47]} 25. Rd5 {[%clk
00:04:29]} {[%emt 00:04:03]} Bg6 {[%clk 00:50:22]} {[%emt 00:00:08]} 26. Rad1
{[%clk 00:04:55]} {[%emt 00:00:05]} Rff8 {[%clk 00:50:40]} {[%emt 00:00:12]} 27.
Kf2 {[%clk 00:02:28]} {[%emt 00:02:57]} Rfc8 {[%clk 00:50:47]} {[%emt
00:00:21]} 28. Rd7 {[%clk 00:01:34]} {[%emt 00:01:24]} a5 {[%clk 00:48:58]}
{[%emt 00:02:20]} 29. Ne6 {[%clk 00:01:22]} {[%emt 00:00:42]} axb4 {[%clk
00:49:18]} {[%emt 00:00:10]} 30. Rxg7+ {[%clk 00:01:14]} {[%emt 00:00:38]} Kh8
{[%clk 00:49:42]} {[%emt 00:00:05]} 31. Rb7 {[%clk 00:01:00]} {[%emt 00:00:45]}
Rab8 {[%clk 00:42:16]} {[%emt 00:07:55]} 32. Rxb8 {[%clk 00:01:06]} {[%emt
00:00:25]} Rxb8 {[%clk 00:42:33]} {[%emt 00:00:13]} 33. Rd2 {[%clk 00:00:42]}
{[%emt 00:00:55]} b3 {[%clk 00:42:40]} {[%emt 00:00:22]} 34. Rb2 {[%clk
00:01:06]} {[%emt 00:00:06]} Bf7 {[%clk 00:42:34]} {[%emt 00:00:34]} 35. Nd4
{[%clk 00:00:44]} {[%emt 00:00:54]} Rb4 {[%clk 00:42:38]} {[%emt 00:00:26]} 36.
Ke3 {[%clk 00:01:03]} {[%emt 00:00:11]} Rxa4 {[%clk 00:42:54]} {[%emt
00:00:14]} 37. Kd3 {[%clk 00:01:26]} {[%emt 00:00:06]} Ra2 {[%clk 00:42:11]}
{[%emt 00:01:13]} 38. Kc3 {[%clk 00:01:47]} {[%emt 00:00:10]} Rxb2 {[%clk
00:42:32]} {[%emt 00:00:09]} 39. Kxb2 {[%clk 00:02:15]} {[%emt 00:00:02]} Kg7
{[%clk 00:42:54]} {[%emt 00:00:08]} 40. Nxb3 {[%clk 00:01:53]} {[%emt
00:00:51]} Kg6 {[%clk 01:13:16]} {[%emt 00:00:08]} 41. Nc5 {[%clk 00:31:00]}
{[%emt 00:01:23]} Bc4 {[%clk 01:10:25]} {[%emt 00:03:21]} 42. Nd3 {[%clk
00:30:01]} {[%emt 00:01:30]} Kg5 {[%clk 01:10:11]} {[%emt 00:00:42]} 43. Kc3
{[%clk 00:29:25]} {[%emt 00:01:07]} Bb5 {[%clk 01:10:21]} {[%emt 00:00:20]} 44.
Kd2 {[%clk 00:27:09]} {[%emt 00:02:47]} Kh4 {[%clk 01:10:21]} {[%emt 00:00:29]}
45. Nf4 {[%clk 00:26:03]} {[%emt 00:01:37]} Kg5 {[%clk 01:10:28]} {[%emt
00:00:23]} 46. Ng2 {[%clk 00:22:46]} {[%emt 00:03:46]} Ba6 {[%clk 01:10:17]}
{[%emt 00:00:41]} 47. Ke1 {[%clk 00:19:43]} {[%emt 00:03:33]} Bb5 {[%clk
01:10:20]} {[%emt 00:00:28]} 48. Kf2 {[%clk 00:20:02]} {[%emt 00:00:11]} Ba6
{[%clk 01:10:31]} {[%emt 00:00:19]} 49. e3 {[%clk 00:19:17]} {[%emt 00:01:15]}
Bb7 {[%clk 01:10:38]} {[%emt 00:00:23]} 50. Kg3 {[%clk 00:19:36]} {[%emt
00:00:11]} Bc8 {[%clk 01:06:06]} {[%emt 00:05:02]} 51. Nf4 {[%clk 00:19:09]}
{[%emt 00:00:57]} Bd7 {[%clk 01:00:09]} {[%emt 00:06:26]} 52. Nd5 {[%clk
00:18:01]} {[%emt 00:01:38]} Ba4 {[%clk 00:59:43]} {[%emt 00:00:57]} 53. e4
{[%clk 00:11:34]} {[%emt 00:06:57]} Bd1 {[%clk 00:56:14]} {[%emt 00:03:58]} 54.
Nc3 {[%clk 00:09:12]} {[%emt 00:02:52]} Bb3 {[%clk 00:56:15]} {[%emt 00:00:29]}
55. Nb5 {[%clk 00:09:07]} {[%emt 00:00:35]} Ba4 {[%clk 00:55:27]} {[%emt
00:01:18]} 56. Nc7 {[%clk 00:09:02]} {[%emt 00:00:36]} Bd7 {[%clk 00:55:42]}
{[%emt 00:00:15]} 57. Nd5 {[%clk 00:09:16]} {[%emt 00:00:16]} Ba4 {[%clk
00:55:02]} {[%emt 00:01:10]} 58. Nf4 {[%clk 00:08:29]} {[%emt 00:01:16]} Bb3
{[%clk 00:53:39]} {[%emt 00:01:53]} 59. Nh3+ {[%clk 00:08:38]} {[%emt
00:00:21]} Kg6 {[%clk 00:53:47]} {[%emt 00:00:17]} 60. Kf4 {[%clk 00:08:44]}
{[%emt 00:00:29]} Be6 {[%clk 00:52:43]} {[%emt 00:01:34]} 61. Nf2 {[%clk
00:08:51]} {[%emt 00:00:23]} Bd7 {[%clk 00:50:01]} {[%emt 00:03:13]} 62. Nd1
{[%clk 00:08:39]} {[%emt 00:00:42]} Bc8 {[%clk 00:45:36]} {[%emt 00:04:54]} 63.
Ne3 {[%clk 00:08:59]} {[%emt 00:00:10]} Be6 {[%clk 00:43:38]} {[%emt 00:02:28]}
64. Nd5 {[%clk 00:08:19]} {[%emt 00:01:10]} Bh3 {[%clk 00:42:16]} {[%emt
00:01:51]} 65. Ke3 {[%clk 00:06:56]} {[%emt 00:01:54]} Kf7 {[%clk 00:39:26]}
{[%emt 00:03:20]} 66. Nf4 {[%clk 00:06:58]} {[%emt 00:00:28]} Bd7 {[%clk
00:39:30]} {[%emt 00:00:26]} 67. Kd4 {[%clk 00:06:13]} {[%emt 00:01:15]} Bc6
{[%clk 00:37:13]} {[%emt 00:02:46]} 68. Kc5 {[%clk 00:04:59]} {[%emt 00:01:45]}
Ba4 {[%clk 00:37:14]} {[%emt 00:00:30]} 69. Ne2 {[%clk 00:05:11]} {[%emt
00:00:17]} Ke6 {[%clk 00:36:22]} {[%emt 00:01:22]} 70. f4 {[%clk 00:04:33]}
{[%emt 00:01:09]} Ke7 {[%clk 00:34:23]} {[%emt 00:02:28]} 71. Nd4 {[%clk
00:04:42]} {[%emt 00:00:21]} Be8 {[%clk 00:33:16]} {[%emt 00:01:36]} 72. Nf5+
{[%clk 00:04:27]} {[%emt 00:00:46]} Kd7 {[%clk 00:33:36]} {[%emt 00:00:10]} 73.
Nd6 {[%clk 00:04:36]} {[%emt 00:00:21]} Bh5 {[%clk 00:32:01]} {[%emt 00:02:04]}
74. Nf5 {[%clk 00:03:57]} {[%emt 00:01:10]} Bd1 {[%clk 00:31:39]} {[%emt
00:00:52]} 75. Nd4 {[%clk 00:04:07]} {[%emt 00:00:20]} Bh5 {[%clk 00:31:49]}
{[%emt 00:00:20]} 76. Nb5 {[%clk 00:03:44]} {[%emt 00:00:54]} Bf7 {[%clk
00:31:30]} {[%emt 00:00:48]} 77. Nc3 {[%clk 00:03:29]} {[%emt 00:00:45]} Bb3
{[%clk 00:31:34]} {[%emt 00:00:26]} 78. Nd5 {[%clk 00:03:28]} {[%emt 00:00:31]}
Ke6 {[%clk 00:31:52]} {[%emt 00:00:12]} 79. Nc7+ {[%clk 00:03:17]} {[%emt
00:00:42]} Kd7 {[%clk 00:31:58]} {[%emt 00:00:23]} 80. Nb5 {[%clk 00:03:38]}
{[%emt 00:00:10]} Ke7 {[%clk 00:32:07]} {[%emt 00:00:20]} 81. Kd4 {[%clk
00:03:33]} {[%emt 00:00:35]} Ke6 {[%clk 00:31:47]} {[%emt 00:00:50]} 82. Nc3
{[%clk 00:03:26]} {[%emt 00:00:37]} Bc2 {[%clk 00:29:36]} {[%emt 00:02:41]} 83.
Nd5 {[%clk 00:03:40]} {[%emt 00:00:16]} Bb3 {[%clk 00:29:36]} {[%emt 00:00:31]}
84. Ne3 {[%clk 00:03:30]} {[%emt 00:00:40]} Ba2 {[%clk 00:29:38]} {[%emt
00:00:28]} 85. f5+ {[%clk 00:02:26]} {[%emt 00:01:34]} Ke7 {[%clk 00:24:09]}
{[%emt 00:05:59]} 86. h4 {[%clk 00:01:45]} {[%emt 00:01:11]} Bb3 {[%clk
00:23:30]} {[%emt 00:01:08]} 87. e5 {[%clk 00:01:23]} {[%emt 00:00:53]} fxe5+
{[%clk 00:23:07]} {[%emt 00:00:52]} 88. Kxe5 {[%clk 00:01:52]} {[%emt
00:00:02]} Kf7 {[%clk 00:22:13]} {[%emt 00:01:22]} 89. Ng4 {[%clk 00:01:47]}
{[%emt 00:00:36]} Ba2 {[%clk 00:21:26]} {[%emt 00:01:17]} 90. h5 {[%clk
00:01:19]} {[%emt 00:00:59]} Bb3 {[%clk 00:21:33]} {[%emt 00:00:22]} 91. h6
{[%clk 00:01:13]} {[%emt 00:00:36]} Ba2 {[%clk 00:21:31]} {[%emt 00:00:32]} 92.
Nf6 {[%clk 00:01:33]} {[%emt 00:00:10]} 1-0

[Event "Senior Men Russian Championship 2022_HL"]
[Site "Saint-Petersburg, Russia"]
[Date "2022.10.01"]
[Round "8.9"]
[White "Berlin, Grigoriy"]
[Black "Filipenko, Alexander V"]
[Result "1/2-1/2"]
[TimeControl "40+30"]
[WhiteElo "2186"]
[BlackElo "2171"]

1. e4 {[%clk 01:30:55]} {[%emt 00:00:04]} e5 {[%clk 01:30:06]} {[%emt
00:00:54]} 2. Nf3 {[%clk 01:31:13]} {[%emt 00:00:12]} Nc6 {[%clk 01:30:29]}
{[%emt 00:00:08]} 3. Bc4 {[%clk 01:31:00]} {[%emt 00:00:44]} Nf6 {[%clk
01:30:49]} {[%emt 00:00:09]} 4. d3 {[%clk 01:31:23]} {[%emt 00:00:07]} Bc5
{[%clk 01:30:55]} {[%emt 00:00:24]} 5. c3 {[%clk 01:30:43]} {[%emt 00:01:10]}
a6 {[%clk 01:30:16]} {[%emt 00:01:08]} 6. a4 {[%clk 01:30:31]} {[%emt
00:00:42]} d6 {[%clk 01:29:27]} {[%emt 00:01:19]} 7. b4 {[%clk 01:28:35]}
{[%emt 00:02:26]} Ba7 {[%clk 01:27:43]} {[%emt 00:02:14]} 8. Qb3 {[%clk
01:28:17]} {[%emt 00:00:48]} O-O {[%clk 01:26:23]} {[%emt 00:01:50]} 9. Nbd2
{[%clk 01:24:42]} {[%emt 00:04:04]} Bd7 {[%clk 01:21:23]} {[%emt 00:05:30]} 10.
Ra2 {[%clk 01:22:04]} {[%emt 00:03:08]} Ne7 {[%clk 01:08:55]} {[%emt 00:12:58]}
11. Qc2 {[%clk 01:11:45]} {[%emt 00:10:50]} Ng6 {[%clk 01:03:59]} {[%emt
00:05:25]} 12. O-O {[%clk 01:11:48]} {[%emt 00:00:27]} Qe7 {[%clk 01:02:56]}
{[%emt 00:01:34]} 13. Re1 {[%clk 01:09:54]} {[%emt 00:02:24]} Be6 {[%clk
01:00:58]} {[%emt 00:02:27]} 14. Bxe6 {[%clk 01:01:23]} {[%emt 00:09:01]} Qxe6
{[%clk 00:57:16]} {[%emt 00:04:12]} 15. Nf1 {[%clk 01:01:42]} {[%emt 00:00:11]}
Ng4 {[%clk 00:44:19]} {[%emt 00:08:14]} 16. Ne3 {[%clk 00:51:08]} {[%emt
00:16:17]} Nxe3 {[%clk 00:43:18]} {[%emt 00:01:31]} 17. Bxe3 {[%clk 00:51:25]}
{[%emt 00:00:13]} Bxe3 {[%clk 00:42:36]} {[%emt 00:01:13]} 18. fxe3 {[%clk
00:49:27]} {[%emt 00:02:28]} f5 {[%clk 00:42:24]} {[%emt 00:00:41]} 19. exf5
{[%clk 00:40:18]} {[%emt 00:09:39]} Rxf5 {[%clk 00:42:28]} {[%emt 00:00:26]} 20.
Raa1 {[%clk 00:39:18]} {[%emt 00:01:30]} Raf8 {[%clk 00:41:22]} {[%emt
00:01:36]} 21. Qa2 {[%clk 00:36:24]} {[%emt 00:03:25]} Qxa2 {[%clk 00:38:42]}
{[%emt 00:03:10]} 22. Rxa2 {[%clk 00:36:53]} {[%emt 00:00:01]} e4 {[%clk
00:35:01]} {[%emt 00:04:11]} 23. dxe4 {[%clk 00:35:24]} {[%emt 00:01:58]} R5f6
{[%clk 00:32:16]} {[%emt 00:03:16]} 24. Raa1 {[%clk 00:17:15]} {[%emt
00:18:39]} Re6 {[%clk 00:30:31]} {[%emt 00:02:14]} 25. Nd2 {[%clk 00:17:17]}
{[%emt 00:00:28]} Ne5 {[%clk 00:30:28]} {[%emt 00:00:34]} 26. h3 {[%clk
00:15:44]} {[%emt 00:02:03]} Nd7 {[%clk 00:30:22]} {[%emt 00:00:35]} 27. Rf1
{[%clk 00:15:48]} {[%emt 00:00:26]} Nf6 {[%clk 00:28:05]} {[%emt 00:02:47]} 28.
Rf4 {[%clk 00:15:30]} {[%emt 00:00:48]} g5 {[%clk 00:27:49]} {[%emt 00:00:47]}
29. Rf5 {[%clk 00:15:16]} {[%emt 00:00:44]} Nxe4 {[%clk 00:27:59]} {[%emt
00:00:20]} 30. Rxf8+ {[%clk 00:14:30]} {[%emt 00:01:16]} Kxf8 {[%clk 00:28:20]}
{[%emt 00:00:09]} 31. Nxe4 {[%clk 00:13:56]} {[%emt 00:01:04]} Rxe4 {[%clk
00:28:41]} {[%emt 00:00:10]} 32. Kf2 {[%clk 00:14:00]} {[%emt 00:00:25]} Rc4
{[%clk 00:26:56]} {[%emt 00:02:15]} 33. Ra3 {[%clk 00:11:33]} {[%emt 00:02:58]}
Ke7 {[%clk 00:17:33]} {[%emt 00:09:53]} 34. Ke2 {[%clk 00:11:32]} {[%emt
00:00:30]} d5 {[%clk 00:15:05]} {[%emt 00:02:59]} 35. Kd3 {[%clk 00:07:28]}
{[%emt 00:04:33]} g4 {[%clk 00:10:26]} {[%emt 00:05:09]} 36. hxg4 {[%clk
00:07:15]} {[%emt 00:00:44]} Kf6 {[%clk 00:05:06]} {[%emt 00:05:50]} 37. Ra1
{[%clk 00:04:52]} {[%emt 00:02:53]} Rxg4 {[%clk 00:04:47]} {[%emt 00:00:49]} 38.
Rf1+ {[%clk 00:04:43]} {[%emt 00:00:38]} Kg7 {[%clk 00:02:51]} {[%emt
00:02:27]} 39. Rf2 {[%clk 00:05:00]} {[%emt 00:00:13]} a5 {[%clk 00:01:14]}
{[%emt 00:02:08]} 40. bxa5 {[%clk 00:31:48]} {[%emt 00:03:42]} Rxa4 {[%clk
00:31:33]} {[%emt 00:00:10]} 41. Rb2 {[%clk 00:32:03]} {[%emt 00:00:16]} Rxa5
{[%clk 00:28:17]} {[%emt 00:03:46]} 42. Rxb7 {[%clk 00:32:18]} {[%emt
00:00:14]} Rc5 {[%clk 00:28:26]} {[%emt 00:00:22]} 43. Kd4 {[%clk 00:27:38]}
{[%emt 00:05:08]} Rc4+ {[%clk 00:28:47]} {[%emt 00:00:10]} 44. Kxd5 {[%clk
00:28:00]} {[%emt 00:00:09]} Rxc3 {[%clk 00:29:10]} {[%emt 00:00:07]} 45. e4
{[%clk 00:27:48]} {[%emt 00:00:41]} Kf6 {[%clk 00:28:23]} {[%emt 00:01:18]} 46.
Kd4 {[%clk 00:26:50]} {[%emt 00:01:27]} Rc2 {[%clk 00:28:11]} {[%emt 00:00:42]}
47. Ra7 {[%clk 00:26:23]} {[%emt 00:00:57]} Rd2+ {[%clk 00:26:27]} {[%emt
00:02:14]} 48. Ke3 {[%clk 00:26:32]} {[%emt 00:00:20]} Rxg2 {[%emt 00:00:08]}
1/2-1/2

[Event "Senior Men Russian Championship 2022_HL"]
[Site "Saint-Petersburg, Russia"]
[Date "2022.10.01"]
[Round "8.10"]
[White "Yakovlev, Yuri S."]
[Black "Mamoshin, Valery"]
[Result "0-1"]
[TimeControl "40+30"]
[WhiteElo "1649"]
[BlackElo "2203"]

1. e4 {[%clk 01:30:59]} d6 {[%clk 01:30:47]} {[%emt 00:00:14]} 2. d4 {[%clk
01:31:24]} {[%emt 00:00:04]} Nf6 {[%clk 01:31:07]} {[%emt 00:00:10]} 3. Nd2
{[%clk 01:30:05]} {[%emt 00:01:49]} g6 {[%clk 01:31:21]} {[%emt 00:00:16]} 4.
Be2 {[%clk 01:30:15]} {[%emt 00:00:20]} Bg7 {[%clk 01:31:41]} {[%emt 00:00:11]}
5. c3 {[%clk 01:29:59]} {[%emt 00:00:46]} c5 {[%clk 01:31:45]} {[%emt
00:00:26]} 6. d5 {[%clk 01:29:58]} {[%emt 00:00:31]} e6 {[%clk 01:30:35]}
{[%emt 00:01:39]} 7. Bb5+ {[%clk 01:27:41]} {[%emt 00:02:48]} Bd7 {[%clk
01:30:49]} {[%emt 00:00:16]} 8. Bxd7+ {[%clk 01:27:56]} {[%emt 00:00:15]} Qxd7
{[%clk 01:31:06]} {[%emt 00:00:14]} 9. dxe6 {[%clk 01:27:18]} {[%emt 00:01:07]}
Qxe6 {[%clk 01:28:15]} {[%emt 00:03:21]} 10. Qe2 {[%clk 01:26:23]} {[%emt
00:01:26]} Nc6 {[%clk 01:27:29]} {[%emt 00:01:16]} 11. Nh3 {[%clk 01:22:14]}
{[%emt 00:04:39]} O-O-O {[%clk 01:27:07]} {[%emt 00:00:52]} 12. O-O {[%clk
01:21:24]} {[%emt 00:01:19]} Rhe8 {[%clk 01:19:00]} {[%emt 00:08:36]} 13. f3
{[%clk 01:17:13]} {[%emt 00:04:42]} h6 {[%clk 01:15:02]} {[%emt 00:04:28]} 14.
Qb5 {[%clk 01:11:21]} {[%emt 00:06:23]} g5 {[%clk 01:13:55]} {[%emt 00:01:35]}
15. Nf2 {[%clk 01:07:47]} {[%emt 00:04:05]} Nd7 {[%clk 01:10:24]} {[%emt
00:04:01]} 16. Qb3 {[%clk 01:05:36]} {[%emt 00:02:41]} Nb6 {[%clk 01:08:08]}
{[%emt 00:02:46]} 17. Qc2 {[%clk 01:05:15]} {[%emt 00:00:52]} d5 {[%clk
01:06:52]} {[%emt 00:01:45]} 18. Nb3 {[%clk 01:01:09]} {[%emt 00:04:36]} c4
{[%clk 01:06:08]} {[%emt 00:01:14]} 19. Nc5 {[%clk 01:01:35]} {[%emt 00:00:04]}
Qd6 {[%clk 01:05:02]} {[%emt 00:01:35]} 20. Be3 {[%clk 01:01:19]} {[%emt
00:00:47]} d4 {[%clk 01:05:10]} {[%emt 00:00:22]} 21. cxd4 {[%clk 01:01:01]}
{[%emt 00:00:49]} Bxd4 {[%clk 01:03:53]} {[%emt 00:01:46]} 22. Bxd4 {[%clk
01:00:28]} {[%emt 00:01:04]} Nxd4 {[%clk 01:04:15]} {[%emt 00:00:07]} 23. Nxb7
{[%clk 00:56:52]} {[%emt 00:04:06]} Nxc2 {[%clk 00:59:20]} {[%emt 00:05:25]} 24.
Nxd6+ {[%clk 00:57:18]} {[%emt 00:00:04]} Rxd6 {[%clk 00:59:27]} {[%emt
00:00:23]} 25. Rac1 {[%clk 00:57:31]} {[%emt 00:00:18]} Rd2 {[%clk 00:59:36]}
{[%emt 00:00:19]} 26. Ng4 {[%clk 00:50:52]} {[%emt 00:07:09]} h5 {[%clk
00:58:47]} {[%emt 00:01:19]} 27. Nf6 {[%clk 00:50:16]} {[%emt 00:01:06]} Red8
{[%clk 00:57:53]} {[%emt 00:01:25]} 28. e5 {[%clk 00:47:48]} {[%emt 00:02:59]}
Ne3 {[%clk 00:57:49]} {[%emt 00:00:33]} 0-1

[Event "Senior Men Russian Championship 2022_HL"]
[Site "Saint-Petersburg, Russia"]
[Date "2022.10.01"]
[Round "8.11"]
[White "Nikitinyh, Boris"]
[Black "Kasantsev, Anatolij B."]
[Result "1-0"]
[TimeControl "40+30"]
[WhiteElo "1853"]
[BlackElo "1908"]

1. d4 {[%emt 00:00:21]} Nf6 {[%emt 00:00:14]} 2. c4 {[%emt 00:00:11]} g6 {[%emt
00:00:09]} 3. Nc3 {[%emt 00:00:14]} d5 {[%emt 00:00:11]} 4. cxd5 {[%emt
00:01:36]} Nxd5 {[%emt 00:00:10]} 5. Bd2 {[%emt 00:00:38]} Nb6 {[%emt
00:00:13]} 6. Nf3 {[%emt 00:00:55]} Bg7 {[%emt 00:00:11]} 7. e3 {[%emt
00:01:08]} O-O {[%emt 00:00:18]} 8. Be2 {[%emt 00:00:39]} Be6 {[%emt 00:02:05]}
9. O-O {[%emt 00:01:45]} Bc4 {[%emt 00:00:12]} 10. b3 {[%emt 00:01:09]} Bxe2
{[%emt 00:00:15]} 11. Qxe2 {[%emt 00:00:15]} c6 {[%emt 00:00:47]} 12. Rad1
{[%emt 00:02:00]} N8d7 {[%emt 00:00:58]} 13. e4 {[%emt 00:01:25]} e5 {[%emt
00:00:06]} 14. Be3 {[%emt 00:09:51]} Qc7 {[%emt 00:00:56]} 15. Rc1 {[%emt
00:03:15]} exd4 {[%emt 00:01:11]} 16. Nxd4 {[%emt 00:00:52]} Qe5 {[%emt
00:01:39]} 17. f4 {[%emt 00:02:21]} Qa5 {[%emt 00:00:20]} 18. e5 {[%emt
00:01:33]} Nd5 {[%emt 00:00:59]} 19. Nxd5 {[%emt 00:01:26]} Qxd5 {[%emt
00:00:03]} 20. Rfd1 {[%emt 00:00:51]} Qe4 {[%emt 00:04:03]} 21. Nxc6 {[%emt
00:00:59]} bxc6 {[%emt 00:00:03]} 22. Rxd7 {[%emt 00:00:55]} g5 {[%emt
00:00:36]} 23. Rd4 {[%clk 01:21:38]} {[%emt 00:09:50]} Qg6 {[%clk 01:30:22]}
{[%emt 00:00:39]} 24. Rd6 {[%clk 01:18:34]} {[%emt 00:03:33]} Qf5 {[%clk
01:29:58]} {[%emt 00:00:54]} 25. g4 {[%clk 01:15:49]} {[%emt 00:03:14]} Qe4
{[%clk 01:29:07]} {[%emt 00:01:21]} 26. Rc4 {[%clk 01:15:45]} {[%emt 00:00:35]}
Qb1+ {[%clk 01:29:02]} {[%emt 00:00:35]} 27. Rd1 {[%clk 01:16:00]} {[%emt
00:00:15]} Qg6 {[%clk 01:29:06]} {[%emt 00:00:26]} 28. f5 {[%clk 01:16:10]}
{[%emt 00:00:20]} Qh6 {[%clk 01:29:22]} {[%emt 00:00:14]} 29. f6 {[%clk
01:13:25]} {[%emt 00:03:15]} Bh8 {[%clk 01:29:50]} {[%emt 00:00:02]} 30. Rf1
{[%clk 01:12:49]} {[%emt 00:01:06]} Rfe8 {[%clk 01:30:08]} {[%emt 00:00:12]} 31.
Rf5 {[%clk 01:13:01]} {[%emt 00:00:18]} 1-0

[Event "Senior Men Russian Championship 2022_HL"]
[Site "Saint-Petersburg, Russia"]
[Date "2022.10.02"]
[Round "9.1"]
[White "Ponfilenok, Vladimir"]
[Black "Raetsky, Alexander"]
[Result "1/2-1/2"]
[TimeControl "40+30"]
[WhiteElo "2298"]
[BlackElo "2384"]

1. d4 {[%clk 01:30:58]} d5 {[%clk 01:29:21]} {[%emt 00:01:41]} 2. c4 {[%clk
01:31:26]} {[%emt 00:00:02]} dxc4 {[%clk 01:26:50]} {[%emt 00:03:00]} 3. Nf3
{[%clk 01:31:49]} {[%emt 00:00:07]} c5 {[%clk 01:24:01]} {[%emt 00:03:21]} 4.
e3 {[%clk 01:30:52]} {[%emt 00:01:26]} cxd4 {[%clk 01:24:17]} {[%emt 00:00:14]}
5. Qxd4 {[%clk 01:29:34]} {[%emt 00:01:48]} Qxd4 {[%clk 01:19:11]} {[%emt
00:05:36]} 6. Nxd4 {[%clk 01:30:01]} {[%emt 00:00:02]} Bd7 {[%clk 01:15:45]}
{[%emt 00:03:56]} 7. Bxc4 {[%clk 01:28:50]} {[%emt 00:01:42]} Nc6 {[%clk
01:14:40]} {[%emt 00:01:36]} 8. Nxc6 {[%clk 01:25:15]} {[%emt 00:04:04]} Bxc6
{[%clk 01:15:08]} {[%emt 00:00:02]} 9. f3 {[%clk 01:25:39]} {[%emt 00:00:06]}
Rc8 {[%clk 01:15:19]} {[%emt 00:00:18]} 10. Nc3 {[%clk 01:26:02]} {[%emt
00:00:07]} e6 {[%clk 01:15:33]} {[%emt 00:00:17]} 11. e4 {[%clk 01:22:39]}
{[%emt 00:03:53]} Nf6 {[%clk 01:12:23]} {[%emt 00:03:39]} 12. Bb3 {[%clk
01:06:02]} {[%emt 00:17:07]} Nd7 {[%clk 00:51:05]} {[%emt 00:21:49]} 1/2-1/2